lending/lending_fUSD_20260209
["ID","MTS","AMOUNT","RATE_DAILY","PERIOD"]
[404910435,1770671610780,3605.43,0.00016102,2]
[404910436,1770671641524,300.0,0.00016101,2]
[404910437,1770671675206,-250.0,0.00016142,2]
[404910438,1770671675237,-150.0,0.00016156,2]
[404910439,1770671675266,-1580.95166824,0.00016182,2]
[404910440,1770671675294,-503.25473339,0.00016182,2]
[404910441,1770671685707,31.59719674,0.00016102,2]
[404910442,1770671685728,5000.01,0.00016102,2]
[404910443,1770671701139,300.0,0.00016182,2]
[404910444,1770671701167,1200.0,0.00016182,2]
[404910445,1770671701251,3500.01,0.00016102,2]
[404910446,1770671701276,2767.598159,0.00016102,2]
[404910447,1770671702556,-550.0,0.00016182,2]
[404910448,1770671703110,300.0,0.00016182,2]
[404910449,1770671703432,301.14012694,0.00035616,30]
[404910450,1770671703487,1053.2642754,0.00035616,120]
[404910454,1770671723634,500.0,0.00016182,2]
[404910455,1770671723897,500.0,0.00016182,2]
[404910456,1770671724143,500.0,0.00016182,2]
[404910457,1770671724463,501.35759554,0.00016182,2]
[404910459,1770671735717,500.0,0.00016182,2]
[404910460,1770671735746,500.0,0.00016182,2]
[404910461,1770671735775,277.9435939,0.00016182,2]
[404910462,1770671735802,320.70881056,0.00016182,2]
[404910463,1770671735822,185.32248596,0.00016182,2]
[404910464,1770671735852,500.0,0.00016182,2]
[404910465,1770671735890,500.0,0.00016182,2]
[404910466,1770671735916,404.7419541,0.00016182,2]
[404910467,1770671735944,509.31183288,0.00016182,2]
[404910468,1770671735974,500.0,0.00016182,2]
[404910469,1770671736004,500.0,0.00016182,2]
[404910470,1770671736033,403.1388611,0.00016182,2]
[404910471,1770671736062,500.0,0.00016182,2]
[404910472,1770671736097,500.0,0.00016182,2]
[404910473,1770671736135,497.49486596,0.00016182,2]
[404910474,1770671738791,-2.50513404,0.00016182,2]
[404910475,1770671738818,-500.0,0.00016182,2]
[404910476,1770671738851,-500.0,0.00016182,2]
[404910477,1770671753694,2965.6609488,0.00016182,2]
[404910478,1770671760630,551.25,0.000303,30]
[404910479,1770671760925,551.25,0.000344,30]
[404910480,1770671764065,29.33878312,0.00016182,2]
[404910481,1770671764088,5000.01,0.00016182,2]
[404910484,1770671782192,-3423.41307134,0.00016182,2]
[404910485,1770671783627,5484.09,0.00016073,2]
[404910486,1770671785238,-5000.01,0.00016182,2]
[404910487,1770671787825,250.0,0.00015,2]
[404910488,1770671788367,-5000.01,0.00016182,2]
[404910489,1770671791321,-1749.74807439,0.00016182,2]
[404910490,1770671791352,-36.55893526,0.00016182,2]
[404910491,1770671791394,-1427.3959807,0.00016182,2]
[404910492,1770671794437,-335.50315558,0.00016182,2]
[404910493,1770671794465,-178.03740528,0.00016182,2]
[404910494,1770671794511,-3972.92887828,0.00016182,2]
[404910497,1770671797354,-5000.01,0.00016182,2]
[404910498,1770671800494,-5000.01,0.00016182,2]
[404910499,1770671803423,-5000.01,0.00016182,2]
[404910500,1770671804431,-1229.57105055,0.00016182,2]
[404910501,1770671804451,-1229.57105055,0.00016182,2]
[404910502,1770671804462,-17540.8578989,0.00016182,2]
[404910503,1770671806546,-1432.10097938,0.00016182,2]
[404910504,1770671806582,-2135.80804124,0.00016182,2]
[404910505,1770671809480,-5000.01,0.00016182,2]
[404910506,1770671812924,-5000.01,0.00016182,2]
[404910507,1770671815538,-5000.01,0.00016182,2]
[404910508,1770671816991,195.71764691,0.00016082,2]
[404910509,1770671818709,-1933.31811241,0.00016182,2]
[404910510,1770671818731,-1133.37377518,0.00016182,2]
[404910511,1770671821590,-5000.01,0.00016182,2]
[404910512,1770671822899,195.7176469,0.00016083,2]
[404910513,1770671824719,-5000.01,0.00016182,2]
[404910514,1770671827725,-5000.01,0.00016182,2]
[404910515,1770671833783,2500.0,0.00016083,2]
[404910516,1770671843101,-5202.49992883,0.00016182,2]
[404910517,1770671843137,-300.0,0.00016183,2]
[404910518,1770671843176,-8792.47021351,0.00016183,2]
[404910519,1770671843191,-5202.49992883,0.00016183,2]
[404910520,1770671843204,-300.0,0.00016183,2]
[404910521,1770671843217,-5907.55978649,0.00016183,2]
[404910522,1770671843228,-14294.97014234,0.00016183,2]
[404910523,1770671935819,2621.51123256,0.0001608,2]
[404910524,1770671938327,-300.0,0.0001618,2]
[404910525,1770671938358,-300.0,0.0001618,2]
[404910526,1770671938387,-195.0,0.00016181,2]
[404910527,1770671938410,-300.0,0.00016181,2]
[404910528,1770671938422,-300.0,0.00016181,2]
[404910529,1770671938437,-195.0,0.00016181,2]
[404910530,1770671938451,-13410.0,0.00016181,2]
[404910531,1770671956835,441.0,0.000303,30]
[404910532,1770671980029,-260.2878161,0.00016181,2]
[404910533,1770671980059,-550.0,0.00016181,2]
[404910534,1770671980089,-300.0,0.00016181,2]
[404910535,1770671980122,-311.8057918,0.00016181,2]
[404910536,1770671980151,-1556.61134423,0.00016182,2]
[404910537,1770671980172,-260.2878161,0.00016182,2]
[404910538,1770671980183,-550.0,0.00016182,2]
[404910539,1770671980208,-300.0,0.00016182,2]
[404910540,1770671980219,-311.8057918,0.00016182,2]
[404910541,1770671980230,-1556.61134423,0.00016182,2]
[404910542,1770671980241,-6042.59009574,0.00016182,2]
[404910543,1770672003186,1053.2642754,0.00035616,120]
[404910552,1770672094660,10000.01,0.00016082,2]
[404910553,1770672094687,10000.01,0.00016082,2]
[404910554,1770672094712,10000.01,0.00016082,2]
[404910555,1770672094737,10000.01,0.00016082,2]
[404910556,1770672094762,10000.01,0.00016082,2]
[404910557,1770672094787,10000.01,0.00016082,2]
[404910558,1770672094811,10000.01,0.00016082,2]
[404910559,1770672094835,10000.01,0.00016082,2]
[404910560,1770672094858,10000.01,0.00016082,2]
[404910561,1770672094884,10000.01,0.00016082,2]
[404910562,1770672094910,5000.01,0.00016082,2]
[404910563,1770672139111,1346.70080608,0.00015983,2]
[404910564,1770672150496,383.90747105,0.00015981,2]
[404910565,1770672151319,396.9,0.000303,30]
[404910566,1770672151604,396.9,0.000347,30]
[404910567,1770672153611,151.0,0.00014634,2]
[404910568,1770672156287,383.90747103,0.00015982,2]
[404910569,1770672158473,3149.59306887,0.00015982,2]
[404910570,1770672162234,383.90747103,0.00015983,2]
[404910571,1770672170592,183.7251154,0.00015982,2]
[404910572,1770672171633,-9232.74176047,0.00016072,2]
[404910573,1770672171656,-196.0263809,0.00016081,2]
[404910574,1770672171679,-500.0,0.00016081,2]
[404910575,1770672171703,-500.0,0.00016081,2]
[404910576,1770672171727,-500.0,0.00016081,2]
[404910577,1770672171750,-489.23765123,0.00016081,2]
[404910578,1770672171774,-500.0,0.00016081,2]
[404910579,1770672171797,-500.0,0.00016081,2]
[404910580,1770672171820,-500.0,0.00016081,2]
[404910581,1770672171843,-500.0,0.00016081,2]
[404910582,1770672171866,-500.0,0.00016081,2]
[404910583,1770672171890,-500.0,0.00016081,2]
[404910584,1770672171914,-500.0,0.00016081,2]
[404910585,1770672171938,-500.0,0.00016081,2]
[404910586,1770672171961,-500.0,0.00016081,2]
[404910587,1770672171984,-500.0,0.00016081,2]
[404910588,1770672172008,-500.0,0.00016081,2]
[404910589,1770672172031,-500.0,0.00016081,2]
[404910590,1770672172054,-500.0,0.00016081,2]
[404910591,1770672172077,-500.0,0.00016081,2]
[404910592,1770672172100,-500.0,0.00016081,2]
[404910593,1770672172124,-500.0,0.00016081,2]
[404910594,1770672172147,-217.00539233,0.00016081,2]
[404910595,1770672172172,-500.0,0.00016081,2]
[404910596,1770672172195,-500.0,0.00016081,2]
[404910597,1770672172217,-500.0,0.00016081,2]
[404910598,1770672172242,-500.0,0.00016081,2]
[404910599,1770672172266,-7.98881507,0.00016081,2]
[404910600,1770672172386,-492.01118493,0.00016081,2]
[404910601,1770672172418,-500.0,0.00016081,2]
[404910602,1770672172449,-500.0,0.00016081,2]
[404910603,1770672172479,-500.0,0.00016081,2]
[404910604,1770672172508,-500.0,0.00016081,2]
[404910605,1770672172540,-500.0,0.00016081,2]
[404910606,1770672172570,-500.0,0.00016081,2]
[404910607,1770672172603,-500.0,0.00016081,2]
[404910608,1770672172637,-456.26532159,0.00016081,2]
[404910609,1770672172670,-186.22137829,0.00016081,2]
[404910610,1770672172699,-231.01423038,0.00016081,2]
[404910611,1770672172736,-268.98576962,0.00016081,2]
[404910612,1770672172767,-500.0,0.00016081,2]
[404910613,1770672172798,-500.0,0.00016081,2]
[404910614,1770672172829,-500.0,0.00016081,2]
[404910615,1770672172860,-500.0,0.00016081,2]
[404910616,1770672172895,-583.10653401,0.00016081,2]
[404910617,1770672172929,-583.10653401,0.00016081,2]
[404910618,1770672172962,-583.10653401,0.00016081,2]
[404910619,1770672172996,-583.10653401,0.00016081,2]
[404910620,1770672173029,-214.07965467,0.00016081,2]
[404910621,1770672173203,-369.02687934,0.00016081,2]
[404910622,1770672173238,-583.10653401,0.00016081,2]
[404910623,1770672173273,-583.10653401,0.00016081,2]
[404910624,1770672173307,-583.10653401,0.00016081,2]
[404910625,1770672173340,-583.10653401,0.00016081,2]
[404910626,1770672173374,-583.10653401,0.00016081,2]
[404910627,1770672173408,-583.10653401,0.00016081,2]
[404910628,1770672173442,-583.10653401,0.00016081,2]
[404910629,1770672173477,-515.35823117,0.00016081,2]
[404910630,1770672175066,-67.74830284,0.00016081,2]
[404910631,1770672175097,-583.10653401,0.00016081,2]
[404910632,1770672175127,-583.10653401,0.00016081,2]
[404910633,1770672175159,-583.10653401,0.00016081,2]
[404910634,1770672175192,-583.10653401,0.00016081,2]
[404910635,1770672175225,-583.10653401,0.00016081,2]
[404910636,1770672175259,-583.10653401,0.00016081,2]
[404910637,1770672175289,-583.10653401,0.00016081,2]
[404910638,1770672175320,-583.10653401,0.00016081,2]
[404910639,1770672178083,-583.10653401,0.00016081,2]
[404910640,1770672178116,-583.10653401,0.00016081,2]
[404910641,1770672178149,-583.10653401,0.00016081,2]
[404910642,1770672178183,-583.10653401,0.00016081,2]
[404910643,1770672178215,-583.10653401,0.00016081,2]
[404910644,1770672178248,-583.10653401,0.00016081,2]
[404910645,1770672178280,-583.10653401,0.00016081,2]
[404910646,1770672178315,-583.10653401,0.00016081,2]
[404910647,1770672178349,-87.19892183,0.00016081,2]
[404910648,1770672178479,-495.90761218,0.00016081,2]
[404910649,1770672178514,-583.10653401,0.00016081,2]
[404910650,1770672178549,-583.10653401,0.00016081,2]
[404910651,1770672178583,-583.10653401,0.00016081,2]
[404910652,1770672178617,-583.10653401,0.00016081,2]
[404910653,1770672178650,-583.10653401,0.00016081,2]
[404910654,1770672178681,-583.10653401,0.00016081,2]
[404910655,1770672178715,-583.10653401,0.00016081,2]
[404910656,1770672178747,-261.59676549,0.00016081,2]
[404910657,1770672178861,-216.81,0.00015297,2]
[404910658,1770672178895,-321.50976852,0.00016081,2]
[404910659,1770672178928,-583.10653401,0.00016081,2]
[404910660,1770672178960,-583.10653401,0.00016081,2]
[404910661,1770672178992,-583.10653401,0.00016081,2]
[404910662,1770672179024,-583.10653401,0.00016081,2]
[404910663,1770672179055,-583.10653401,0.00016081,2]
[404910664,1770672179087,-583.10653401,0.00016081,2]
[404910665,1770672179119,-583.10653401,0.00016081,2]
[404910666,1770672179147,-259.87898682,0.00016081,2]
[404910667,1770672181085,-240.12101318,0.00016081,2]
[404910668,1770672181118,-500.0,0.00016081,2]
[404910669,1770672181152,-500.0,0.00016081,2]
[404910670,1770672181187,-190.77837693,0.00016081,2]
[404910671,1770672187222,-461.19381746,0.00015982,2]
[404910672,1770672190980,151.0,0.00014634,2]
[404910673,1770672204346,341.8989194,0.00015982,2]
[404910674,1770672204771,500.0,0.0001532,2]
[404910675,1770672213608,455.57,0.00015304,2]
[404910676,1770672214732,264.77239887,0.00015982,2]
[404910677,1770672236833,2632.05260373,0.00015982,2]
[404910678,1770672259279,897.80053738,0.00015982,2]
[404910679,1770672291558,5000.01,0.00015235,2]
[404910680,1770672291581,5000.01,0.00015235,2]
[404910681,1770672291601,41.72,0.00015235,2]
[404910682,1770672300958,187.20958294,0.00015982,2]
[404910683,1770672314224,2328.82688885,0.00015982,2]
[404910684,1770672317398,663.75011558,0.00015982,2]
[404910685,1770672337772,-150.0,0.00016055,2]
[404910686,1770672337804,-150.0,0.00016055,2]
[404910687,1770672337834,-300.0,0.00016064,2]
[404910688,1770672338626,521.4056573,0.00015982,2]
[404910689,1770672345089,176.51493258,0.00015982,2]
[404910690,1770672346480,317.52,0.000302,30]
[404910691,1770672346774,317.52,0.000344,30]
[404910693,1770672376293,80483.40223794,0.000209,30]
[404910694,1770672379487,598.5336916,0.00015982,2]
[404910695,1770672385376,2053.46735805,0.00015,2]
[404910697,1770672399950,21146.34424657,0.00035,30]
[404910698,1770672408768,5450.08836047,0.00015982,2]
[404910699,1770672408794,10000.01,0.00015982,2]
[404910700,1770672415201,-3248.66027152,0.00015982,2]
[404910701,1770672415334,-5000.01,0.00015982,2]
[404910702,1770672415446,-5000.01,0.00015982,2]
[404910703,1770672415574,-5000.01,0.00015982,2]
[404910704,1770672415722,-5000.01,0.00015982,2]
[404910705,1770672417541,-5000.01,0.00015982,2]
[404910706,1770672417681,-5000.01,0.00015982,2]
[404910707,1770672417790,-5000.01,0.00015982,2]
[404910708,1770672417889,-5000.01,0.00015982,2]
[404910709,1770672420568,-1517.64,0.000153,2]
[404910710,1770672420604,-1964.73,0.00015982,2]
[404910711,1770672420684,-5000.01,0.00015982,2]
[404910712,1770672420788,-5000.01,0.00015982,2]
[404910713,1770672420911,-5000.01,0.00015982,2]
[404910714,1770672421019,-5000.01,0.00015982,2]
[404910715,1770672422955,-300.0,0.00015981,2]
[404910716,1770672422985,-300.0,0.00015981,2]
[404910717,1770672431956,-187.20958294,0.00015972,2]
[404910718,1770672434993,-300.0,0.00015981,2]
[404910720,1770672444008,-178.74851016,0.00015981,5]
[404910721,1770672444038,-1063.54173058,0.00015981,5]
[404910722,1770672444068,-1063.54173058,0.00015981,5]
[404910723,1770672444100,-1063.54173058,0.00015981,5]
[404910724,1770672445932,27092.74522438,0.00023,30]
[404910726,1770672451880,9974.63050709,0.00035,30]
[404910727,1770672457707,38030.27029416,0.000314,30]
[404910728,1770672517552,7853.2744524,0.0001,2]
[404910729,1770672518760,7430.52011785,5.11e-06,30]
[404910730,1770672529333,1000.0,0.00029648,30]
[404910731,1770672529633,1000.0,0.00029648,30]
[404910732,1770672529909,1000.0,0.00029648,30]
[404910733,1770672530180,1000.0,0.00029648,30]
[404910734,1770672530444,1000.0,0.00029648,30]
[404910735,1770672530750,1000.0,0.00029648,30]
[404910736,1770672531016,1000.0,0.00029648,30]
[404910737,1770672531331,1000.0,0.00029648,30]
[404910738,1770672531625,1000.0,0.00029648,30]
[404910739,1770672531920,1000.0,0.00029648,30]
[404910740,1770672532243,1000.0,0.00029648,30]
[404910741,1770672532520,506.851,0.00029648,30]
[404910742,1770672540308,174.02,0.00012018,2]
[404910743,1770672541975,254.02,0.000302,30]
[404910744,1770672542255,254.02,0.000344,30]
[404910754,1770672568729,941.74,0.00015005,2]
[404910755,1770672608018,545.792757,0.00014947,2]
[404910761,1770672631740,-275.0,0.00015023,2]
[404910762,1770672631754,-250.0,0.00015023,2]
[404910764,1770672631764,-174.02,0.00015023,2]
[404910765,1770672631774,-941.74,0.00015033,2]
[404910767,1770672631784,-941.74,0.0001506,2]
[404910768,1770672631800,-283.9019215,0.00015076,2]
[404910769,1770672631809,-283.9019215,0.00015076,2]
[404910770,1770672631817,-283.9019215,0.00015076,2]
[404910771,1770672631825,-275.79423552,0.00015088,2]
[404910772,1770672631838,-665.94576448,0.00015088,2]
[404910773,1770672631848,-308.23308396,0.00015096,2]
[404910774,1770672631860,-503.71818327,0.00015096,2]
[404910775,1770672631871,-388.04873277,0.00015096,2]
[404910776,1770672631880,-300.0,0.00015096,2]
[404910777,1770672631890,-2728.86826723,0.00015097,2]
[404910778,1770672631901,-23662.84173277,0.00015097,2]
[404910779,1770672631910,-941.74,0.00015115,2]
[404910780,1770672631920,-941.74,0.00015143,2]
[404910781,1770672631929,-941.74,0.00015171,2]
[404910782,1770672631939,-1489.47,0.00015178,2]
[404910783,1770672631950,-941.74,0.00015198,2]
[404910784,1770672631964,-941.74,0.00015226,2]
[404910785,1770672631973,-283.9019215,0.00015233,2]
[404910786,1770672631983,-283.9019215,0.00015233,2]
[404910787,1770672632002,-283.9019215,0.00015233,2]
[404910788,1770672632017,-283.9019215,0.00015233,2]
[404910789,1770672632027,-283.9019215,0.00015233,2]
[404910790,1770672632037,-283.9019215,0.00015233,2]
[404910792,1770672632046,-284.18582343,0.00015233,2]
[404910794,1770672632055,-941.74,0.00015254,2]
[404910795,1770672632064,-941.74,0.00015281,2]
[404910797,1770672632073,-300.0,0.00015308,2]
[404910799,1770672632082,-941.74,0.00015309,2]
[404910801,1770672632091,-941.74,0.00015337,2]
[404910803,1770672632100,-941.74,0.00015364,2]
[404910804,1770672632109,-941.74,0.00015392,2]
[404910806,1770672632118,-509.09546344,0.000154,2]
[404910807,1770672632128,-15884.05605959,0.00015409,2]
[404910809,1770672632137,-941.74,0.0001542,2]
[404910811,1770672632146,-941.74,0.00015447,2]
[404910814,1770672632156,-941.74,0.00015475,2]
[404910817,1770672632166,-941.74,0.00015502,2]
[404910818,1770672632178,-941.74,0.0001553,2]
[404910819,1770672632189,-600.0,0.00015712,2]
[404910820,1770672632198,-2022.42889972,0.000158,2]
[404910821,1770672632208,-2243.41149214,0.00015807,2]
[404910822,1770672632219,-176.80933523,0.00015855,2]
[404910823,1770672632229,-2500.0,0.00015882,2]
[404910824,1770672632238,-480.64471693,0.00015891,2]
[404910825,1770672632246,-248.65240675,0.00015891,2]
[404910826,1770672632254,-227.93261294,0.00015891,2]
[404910827,1770672632263,-2175.03113396,0.00015891,2]
[404910828,1770672632274,-10295.40123152,0.00015895,2]
[404910829,1770672632284,-10295.40123143,0.00015927,2]
[404910830,1770672632299,-1489.47,0.00015937,2]
[404910831,1770672632308,-2408.0,0.00015945,2]
[404910832,1770672632319,-1123.0,0.00015945,2]
[404910833,1770672632332,-150.0,0.00015955,2]
[404910834,1770672632343,-10295.40123143,0.00015959,2]
[404910835,1770672632352,-1200.0,0.00015971,2]
[404910836,1770672632361,-255.35,0.00015972,2]
[404910837,1770672632374,-255.35,0.00015972,2]
[404910838,1770672632383,-255.35,0.00015972,2]
[404910839,1770672632392,-255.35,0.00015972,2]
[404910840,1770672632402,-255.35,0.00015972,2]
[404910841,1770672632411,-226.83091402,0.00015972,2]
[404910842,1770672632420,-37941.18834878,0.00015972,2]
[404910843,1770672632429,-500.0,0.00015981,2]
[404910844,1770672632439,-1164319.87052142,0.00015982,2]
[404910845,1770672632451,-167070.16803455,0.00015982,2]
[404910846,1770672632463,-176538.05508553,0.00015982,2]
[404910847,1770672632475,-225270.58182466,0.00015982,2]
[404910848,1770672632587,-82405.40705731,0.00015982,2]
[404910849,1770672632601,-8468.8,0.00015982,2]
[404910850,1770672632615,-7382.376725,0.00015982,2]
[404910851,1770672632628,-1247.39962148,0.00015982,2]
[404910852,1770672632639,-5546.55928661,0.00015982,2]
[404910853,1770672632649,-495.19096835,0.00015982,2]
[404910854,1770672632661,-1580591.9822431,0.00015982,2]
[404910855,1770672632671,-226.83091402,0.00015985,2]
[404910856,1770672632681,-10295.40123143,0.00015991,2]
[404910857,1770672632691,-37941.18834877,0.00015995,2]
[404910858,1770672632699,-150.27588129,0.00016,2]
[404910859,1770672632708,-37941.18834877,0.00016019,2]
[404910860,1770672632718,-10295.40123143,0.00016023,2]
[404910861,1770672632727,-37941.18834877,0.00016042,2]
[404910862,1770672632737,-10295.40123143,0.00016055,2]
[404910863,1770672632746,-37941.18834877,0.00016066,2]
[404910864,1770672632755,-200.0,0.00016072,2]
[404910865,1770672632764,-500.0,0.00016072,2]
[404910866,1770672632774,-500.0,0.00016072,2]
[404910867,1770672632793,-500.0,0.00016072,2]
[404910868,1770672632803,-500.0,0.00016072,2]
[404910869,1770672632812,-500.0,0.00016072,2]
[404910870,1770672632821,-500.0,0.00016072,2]
[404910871,1770672632832,-500.0,0.00016072,2]
[404910872,1770672632842,-500.0,0.00016072,2]
[404910873,1770672632851,-500.0,0.00016072,2]
[404910874,1770672632860,-500.0,0.00016072,2]
[404910875,1770672632869,-500.0,0.00016072,2]
[404910876,1770672632879,-500.0,0.00016072,2]
[404910877,1770672632888,-151.0,0.00016072,2]
[404910878,1770672632898,-151.0,0.00016072,2]
[404910879,1770672632908,-151.0,0.00016072,2]
[404910880,1770672632918,-151.0,0.00016072,2]
[404910881,1770672632927,-151.0,0.00016072,2]
[404910882,1770672632937,-151.0,0.00016072,2]
[404910883,1770672632946,-500.0,0.00016072,2]
[404910884,1770672632956,-151.0,0.00016072,2]
[404910885,1770672632965,-151.0,0.00016072,2]
[404910886,1770672632979,-151.0,0.00016072,2]
[404910887,1770672632988,-151.0,0.00016072,2]
[404910888,1770672632998,-151.0,0.00016072,2]
[404910889,1770672633007,-151.0,0.00016072,2]
[404910890,1770672633017,-151.0,0.00016072,2]
[404910891,1770672633026,-500.0,0.00016072,2]
[404910892,1770672633036,-151.0,0.00016072,2]
[404910893,1770672633046,-151.0,0.00016072,2]
[404910894,1770672633055,-500.0,0.00016072,2]
[404910895,1770672633066,-151.0,0.00016072,2]
[404910896,1770672633076,-151.0,0.00016072,2]
[404910897,1770672633085,-500.0,0.00016072,2]
[404910898,1770672633095,-151.0,0.00016072,2]
[404910899,1770672633104,-151.0,0.00016072,2]
[404910900,1770672633114,-500.0,0.00016072,2]
[404910901,1770672633123,-151.0,0.00016072,2]
[404910902,1770672633133,-151.0,0.00016072,2]
[404910903,1770672633146,-500.0,0.00016072,2]
[404910904,1770672633155,-151.0,0.00016072,2]
[404910905,1770672633165,-151.0,0.00016072,2]
[404910906,1770672633179,-500.0,0.00016072,2]
[404910907,1770672633188,-151.0,0.00016072,2]
[404910908,1770672633198,-151.0,0.00016072,2]
[404910909,1770672633207,-500.0,0.00016072,2]
[404910910,1770672633216,-151.0,0.00016072,2]
[404910911,1770672633226,-151.0,0.00016072,2]
[404910912,1770672633236,-500.0,0.00016072,2]
[404910913,1770672633246,-151.0,0.00016072,2]
[404910914,1770672633255,-433.01318057,0.00016072,2]
[404910915,1770672633265,-151.0,0.00016072,2]
[404910916,1770672633275,-151.0,0.00016072,2]
[404910917,1770672633284,-228.55353256,0.00016072,2]
[404910918,1770672633297,-200.0,0.00016072,2]
[404910919,1770672633534,-374.6073167,0.00016073,2]
[404910920,1770672633580,-1063.54173058,0.00016081,5]
[404910921,1770672633591,-500.0,0.00016081,2]
[404910922,1770672633601,-419.12847376,0.00016081,2]
[404910923,1770672633610,-1154.91592595,0.00016082,2]
[404910924,1770672633620,-1024.86760112,0.00016082,2]
[404910925,1770672633631,-345.91474539,0.00016082,2]
[404910926,1770672633640,-1479.37248581,0.00016082,2]
[404910927,1770672633650,-299.99,0.00016084,2]
[404910928,1770672633659,-10295.40123143,0.00016087,2]
[404910929,1770672633669,-37941.18834877,0.00016089,2]
[404910930,1770672633682,-151.0,0.0001611,2]
[404910931,1770672633692,-37941.18834877,0.00016113,2]
[404910932,1770672633702,-10295.40123143,0.00016119,2]
[404910933,1770672633712,-999.99,0.00016133,2]
[404910934,1770672633722,-9999.99,0.00016133,2]
[404910935,1770672633731,-9999.99,0.00016133,2]
[404910936,1770672633741,-150.99,0.00016133,2]
[404910937,1770672633751,-5685.98,0.00016133,2]
[404910938,1770672633760,-1229.19,0.00016133,2]
[404910939,1770672633770,-499.99,0.00016133,2]
[404910940,1770672633779,-9999.99,0.00016133,2]
[404910941,1770672633788,-37941.18834877,0.00016136,2]
[404910942,1770672633797,-4018.45,0.00016145,2]
[404910943,1770672633807,-9999.99,0.00016145,2]
[404910944,1770672633816,-10295.40123143,0.00016151,2]
[404910945,1770672633825,-150.99,0.00016158,2]
[404910946,1770672633834,-9999.99,0.00016158,2]
[404910947,1770672633845,-37941.18834877,0.0001616,2]
[404910948,1770672633854,-500.0,0.00016182,2]
[404910949,1770672633863,-500.0,0.00016182,2]
[404910950,1770672633873,-499.52719291,0.00016182,2]
[404910951,1770672633885,-500.0,0.00016182,2]
[404910952,1770672633895,-500.0,0.00016182,2]
[404910953,1770672633904,-500.0,0.00016182,2]
[404910954,1770672633914,-500.0,0.00016182,2]
[404910955,1770672633924,-500.0,0.00016182,2]
[404910956,1770672633934,-500.0,0.00016182,2]
[404910957,1770672633943,-500.0,0.00016182,2]
[404910958,1770672633952,-500.0,0.00016182,2]
[404910959,1770672633962,-500.0,0.00016182,2]
[404910960,1770672633972,-500.0,0.00016182,2]
[404910961,1770672633982,-500.0,0.00016182,2]
[404910962,1770672633991,-500.0,0.00016182,2]
[404910963,1770672634001,-500.0,0.00016182,2]
[404910964,1770672634010,-500.0,0.00016182,2]
[404910965,1770672634019,-500.0,0.00016182,2]
[404910966,1770672634029,-500.0,0.00016182,2]
[404910967,1770672634039,-500.0,0.00016182,2]
[404910968,1770672634048,-500.0,0.00016182,2]
[404910969,1770672634057,-500.0,0.00016182,2]
[404910970,1770672634067,-500.0,0.00016182,2]
[404910971,1770672634076,-500.0,0.00016182,2]
[404910972,1770672634085,-500.0,0.00016182,2]
[404910973,1770672634096,-500.0,0.00016182,2]
[404910974,1770672634105,-480.28628224,0.00016182,2]
[404910975,1770672634115,-2942.913,0.00016182,2]
[404910976,1770672634124,-500.0,0.00016182,2]
[404910977,1770672634135,-501.22606665,0.00016182,2]
[404910978,1770672634144,-500.0,0.00016182,2]
[404910979,1770672634155,-500.0,0.00016182,2]
[404910980,1770672634164,-500.0,0.00016182,2]
[404910981,1770672634174,-500.0,0.00016182,2]
[404910982,1770672634183,-490.26760378,0.00016182,2]
[404910983,1770672634193,-500.0,0.00016182,2]